[Event "Titled Tuesday Blitz November 07 Early 2023"]
[White "Jia, Haoxiang"]
[Black "Senthil Maran K"]
[WhiteFideId "8602999"]
[BlackFideId "25035681"]
[WhiteElo "2562"]
[BlackElo "2525"]
[Result "0-1"]
[Round "3"]
[TimeControl "180+1"]
[Date "2023.11.07"]
[WhiteClock "0:00:09"]
[BlackClock "0:00:35"]
[Board "158"]

1. d4 {[%clk 0:03:00]}  Nf6 {[%clk 0:02:58]} 2. Bf4 {[%clk 0:02:57]}  d5 {[%clk 0:02:54]} 3. e3 {[%clk 0:02:54]}  c5 {[%clk 0:02:54]} 4. c3 {[%clk 0:02:52]}  Nc6 {[%clk 0:02:53]} 5. Nf3 {[%clk 0:02:51]}  cxd4 {[%clk 0:02:53]} 6. exd4 {[%clk 0:02:51]}  Bg4 {[%clk 0:02:52]} 7. Nbd2 {[%clk 0:02:44]}  e6 {[%clk 0:02:52]} 8. Qb3 {[%clk 0:02:41]}  Bd6 {[%clk 0:02:52]} 9. Qxb7 {[%clk 0:02:29]}  O-O {[%clk 0:02:51]} 10. Qxc6 {[%clk 0:02:20]}  Bxf4 {[%clk 0:02:50]} 11. Be2 {[%clk 0:02:19]}  Rb8 {[%clk 0:02:49]} 12. Nb3 {[%clk 0:02:14]}  a5 {[%clk 0:02:47]} 13. h3 {[%clk 0:02:08]}  Bxf3 {[%clk 0:02:44]} 14. Bxf3 {[%clk 0:02:07]}  Qd7 {[%clk 0:02:35]} 15. Qa6 {[%clk 0:01:47]}  Ra8 {[%clk 0:02:18]} 16. Qe2 {[%clk 0:01:44]}  Rfb8 {[%clk 0:02:15]} 17. O-O {[%clk 0:01:37]}  Ne8 {[%clk 0:02:15]} 18. Nc5 {[%clk 0:01:32]}  Qa7 {[%clk 0:02:15]} 19. g3 {[%clk 0:01:28]}  Bd6 {[%clk 0:02:15]} 20. Nd3 {[%clk 0:01:28]}  Bf8 {[%clk 0:02:15]} 21. a4 {[%clk 0:01:26]}  Nd6 {[%clk 0:02:15]} 22. Rfe1 {[%clk 0:01:26]}  Nc4 {[%clk 0:02:16]} 23. Qc2 {[%clk 0:01:22]}  Rb6 {[%clk 0:02:12]} 24. b3 {[%clk 0:01:17]}  Nd6 {[%clk 0:02:10]} 25. Nc5 {[%clk 0:01:17]}  Rab8 {[%clk 0:02:10]} 26. Rab1 {[%clk 0:01:17]}  Qc7 {[%clk 0:02:10]} 27. Bg4 {[%clk 0:01:13]}  Nb7 {[%clk 0:02:07]} 28. Nxe6 {[%clk 0:01:05]}  fxe6 {[%clk 0:02:05]} 29. Bxe6+ {[%clk 0:01:05]}  Kh8 {[%clk 0:02:05]} 30. Bxd5 {[%clk 0:01:06]}  Nd6 {[%clk 0:02:03]} 31. c4 {[%clk 0:01:06]}  Ne8 {[%clk 0:01:59]} 32. Qf5 {[%clk 0:01:00]}  Nf6 {[%clk 0:01:58]} 33. Bf3 {[%clk 0:00:57]}  Rxb3 {[%clk 0:01:57]} 34. Rxb3 {[%clk 0:00:55]}  Rxb3 {[%clk 0:01:58]} 35. c5 {[%clk 0:00:54]}  Rb4 {[%clk 0:01:50]} 36. Re8 {[%clk 0:00:52]}  Rb8 {[%clk 0:01:42]} 37. Rxb8 {[%clk 0:00:49]}  Qxb8 {[%clk 0:01:42]} 38. Kg2 {[%clk 0:00:49]}  Qd8 {[%clk 0:01:39]} 39. Qe5 {[%clk 0:00:43]}  Be7 {[%clk 0:01:36]} 40. g4 {[%clk 0:00:38]}  h6 {[%clk 0:01:36]} 41. Bb7 {[%clk 0:00:33]}  Nh7 {[%clk 0:01:36]} 42. Qe3 {[%clk 0:00:27]}  Bg5 {[%clk 0:01:35]} 43. f4 {[%clk 0:00:26]}  Bf6 {[%clk 0:01:36]} 44. d5 {[%clk 0:00:27]}  Nf8 {[%clk 0:01:28]} 45. d6 {[%clk 0:00:26]}  Nd7 {[%clk 0:01:27]} 46. c6 {[%clk 0:00:25]}  Qb8 {[%clk 0:01:19]} 47. Qf3 {[%clk 0:00:20]}  Qxd6 {[%clk 0:01:15]} 48. cxd7 {[%clk 0:00:20]}  Qxd7 {[%clk 0:01:15]} 49. g5 {[%clk 0:00:16]}  hxg5 {[%clk 0:01:14]} 50. fxg5 {[%clk 0:00:16]}  Qd2+ {[%clk 0:01:14]} 51. Kf1 {[%clk 0:00:16]}  Qc1+ {[%clk 0:01:13]} 52. Ke2 {[%clk 0:00:15]}  Qxg5 {[%clk 0:01:13]} 53. Be4 {[%clk 0:00:14]}  Kg8 {[%clk 0:01:11]} 54. Qb3+ {[%clk 0:00:14]}  Kf8 {[%clk 0:01:10]} 55. Qb8+ {[%clk 0:00:14]}  Ke7 {[%clk 0:01:10]} 56. Qc7+ {[%clk 0:00:15]}  Ke6 {[%clk 0:01:10]} 57. Qb6+ {[%clk 0:00:16]}  Ke7 {[%clk 0:01:09]} 58. Bf3 {[%clk 0:00:16]}  Qe5+ {[%clk 0:01:07]} 59. Kf1 {[%clk 0:00:16]}  Bh4 {[%clk 0:01:06]} 60. Qb7+ {[%clk 0:00:13]}  Kf6 {[%clk 0:01:06]} 61. Qc6+ {[%clk 0:00:13]}  Ke7 {[%clk 0:01:04]} 62. Qb7+ {[%clk 0:00:13]}  Kf8 {[%clk 0:01:01]} 63. Qc8+ {[%clk 0:00:12]}  Ke7 {[%clk 0:01:01]} 64. Qc1 {[%clk 0:00:10]}  Qg3 {[%clk 0:00:57]} 65. Qe3+ {[%clk 0:00:08]}  Kf6 {[%clk 0:00:57]} 66. Qd4+ {[%clk 0:00:08]}  Ke7 {[%clk 0:00:54]} 67. Qe3+ {[%clk 0:00:08]}  Kd6 {[%clk 0:00:54]} 68. Qd4+ {[%clk 0:00:08]}  Kc7 {[%clk 0:00:54]} 69. Qc5+ {[%clk 0:00:09]}  Kd7 {[%clk 0:00:54]} 70. Bg4+ {[%clk 0:00:09]}  Kd8 {[%clk 0:00:54]} 71. Qxa5+ {[%clk 0:00:08]}  Ke7 {[%clk 0:00:54]} 72. Qb4+ {[%clk 0:00:08]}  Kf6 {[%clk 0:00:54]} 73. Qd4+ {[%clk 0:00:08]}  Ke7 {[%clk 0:00:52]} 74. Qxg7+ {[%clk 0:00:08]}  Kd6 {[%clk 0:00:53]} 75. Qd4+ {[%clk 0:00:08]}  Ke7 {[%clk 0:00:53]} 76. Ke2 {[%clk 0:00:08]}  Qe1+ {[%clk 0:00:53]} 77. Kd3 {[%clk 0:00:09]}  Qb1+ {[%clk 0:00:51]} 78. Kc4 {[%clk 0:00:09]}  Qa2+ {[%clk 0:00:51]} 79. Kb5 {[%clk 0:00:09]}  Bf2 {[%clk 0:00:40]} 80. Qe5+ {[%clk 0:00:09]}  Kf8 {[%clk 0:00:37]} 81. Qf6+ {[%clk 0:00:09]}  Ke8 {[%clk 0:00:37]} 82. Bh5+ {[%clk 0:00:08]}  Kd7 {[%clk 0:00:37]} 83. Bg4+ {[%clk 0:00:08]}  Ke8 {[%clk 0:00:36]} 84. Bh5+ {[%clk 0:00:08]}  Kd7 {[%clk 0:00:37]} 85. Qc6+ {[%clk 0:00:09]}  Ke7 {[%clk 0:00:37]} 86. Qe4+ {[%clk 0:00:08]}  Kf6 {[%clk 0:00:37]} 87. Qf4+ {[%clk 0:00:09]}  Ke7 {[%clk 0:00:37]} 88. Qe5+ {[%clk 0:00:08]}  Kd7 {[%clk 0:00:37]} 89. Be8+ {[%clk 0:00:09]}  Kd8 {[%clk 0:00:37]} 90. Bc6 {[%clk 0:00:08]}  Qb3+ {[%clk 0:00:36]} 91. Ka5 {[%clk 0:00:09]}  Qb6# {[%clk 0:00:35]} 0-1


[Site "https://www.chess.com"]

[Event "Titled Tuesday Blitz November 07 Early 2023"]
[White "ilya2700"]
[Black "Roebers, Eline"]
[BlackFideId "1058401"]
[WhiteElo "2298"]
[BlackElo "2557"]
[Result "0-1"]
[Round "3"]
[TimeControl "180+1"]
[Date "2023.11.07"]
[WhiteClock "0:01:51"]
[BlackClock "0:01:38"]
[Board "159"]

1. d4 {[%clk 0:02:59]}  f5 {[%clk 0:02:59]} 2. g3 {[%clk 0:02:57]}  Nf6 {[%clk 0:03:00]} 3. Bg2 {[%clk 0:02:58]}  g6 {[%clk 0:03:00]} 4. c4 {[%clk 0:02:58]}  Bg7 {[%clk 0:03:01]} 5. Nc3 {[%clk 0:02:58]}  O-O {[%clk 0:03:01]} 6. Nf3 {[%clk 0:02:58]}  d6 {[%clk 0:03:02]} 7. O-O {[%clk 0:02:58]}  Qe8 {[%clk 0:03:03]} 8. d5 {[%clk 0:02:58]}  Na6 {[%clk 0:03:02]} 9. Nd4 {[%clk 0:02:56]}  Bd7 {[%clk 0:03:02]} 10. Re1 {[%clk 0:02:55]}  Qf7 {[%clk 0:02:58]} 11. Rb1 {[%clk 0:02:50]}  Rac8 {[%clk 0:02:57]} 12. Bg5 {[%clk 0:02:39]}  h6 {[%clk 0:02:52]} 13. Bxf6 {[%clk 0:02:39]}  Bxf6 {[%clk 0:02:53]} 14. e4 {[%clk 0:02:34]}  Nc5 {[%clk 0:02:44]} 15. exf5 {[%clk 0:02:33]}  Bxd4 {[%clk 0:02:37]} 16. Qxd4 {[%clk 0:02:34]}  Bxf5 {[%clk 0:02:37]} 17. Rbd1 {[%clk 0:02:33]}  Nd3 {[%clk 0:02:29]} 18. Re2 {[%clk 0:02:25]}  Ne5 {[%clk 0:02:21]} 19. Rde1 {[%clk 0:02:19]}  Bg4 {[%clk 0:02:13]} 20. Re3 {[%clk 0:02:15]}  Qxf2+ {[%clk 0:02:12]} 21. Kh1 {[%clk 0:02:13]}  Bf3 {[%clk 0:02:00]} 22. Rg1 {[%clk 0:02:00]}  Ng4 {[%clk 0:01:40]} 23. Rxf3 {[%clk 0:01:51]}  Qxd4 {[%clk 0:01:38]} 0-1


[Site "https://www.chess.com"]

[Event "Titled Tuesday Blitz November 07 Early 2023"]
[White "Lesbekova, Assel"]
[Black "Lymar, Vladislav"]
[WhiteFideId "13713248"]
[BlackFideId "14162180"]
[WhiteElo "2294"]
[BlackElo "2556"]
[Result "1-0"]
[Round "3"]
[TimeControl "180+1"]
[Date "2023.11.07"]
[WhiteClock "0:00:57"]
[BlackClock "0:00:00"]
[Board "160"]

1. e4 {[%clk 0:02:59]}  d6 {[%clk 0:02:59]} 2. d4 {[%clk 0:02:58]}  Nf6 {[%clk 0:02:59]} 3. Nc3 {[%clk 0:02:53]}  e5 {[%clk 0:03:00]} 4. Nf3 {[%clk 0:02:52]}  Nbd7 {[%clk 0:02:59]} 5. Bc4 {[%clk 0:02:49]}  Be7 {[%clk 0:03:00]} 6. a4 {[%clk 0:02:48]}  O-O {[%clk 0:02:57]} 7. O-O {[%clk 0:02:44]}  a5 {[%clk 0:02:57]} 8. h3 {[%clk 0:02:42]}  c6 {[%clk 0:02:56]} 9. d5 {[%clk 0:02:42]}  Nc5 {[%clk 0:02:52]} 10. Re1 {[%clk 0:02:40]}  Ne8 {[%clk 0:02:11]} 11. Be3 {[%clk 0:02:34]}  Qb6 {[%clk 0:02:01]} 12. b3 {[%clk 0:02:26]}  Kh8 {[%clk 0:02:01]} 13. Ng5 {[%clk 0:02:21]}  h6 {[%clk 0:01:41]} 14. Qh5 {[%clk 0:02:19]}  Bxg5 {[%clk 0:01:17]} 15. Bxg5 {[%clk 0:02:17]}  Kh7 {[%clk 0:01:18]} 16. Be7 {[%clk 0:02:08]}  Rg8 {[%clk 0:01:02]} 17. Qxf7 {[%clk 0:02:07]}  Qc7 {[%clk 0:01:01]} 18. dxc6 {[%clk 0:02:00]}  Nf6 {[%clk 0:00:39]} 19. Nb5 {[%clk 0:01:51]}  Qxc6 {[%clk 0:00:33]} 20. Bxf6 {[%clk 0:01:50]}  Be6 {[%clk 0:00:27]} 21. Bxe6 {[%clk 0:01:43]}  Nxe6 {[%clk 0:00:28]} 22. Qxe6 {[%clk 0:01:43]}  gxf6 {[%clk 0:00:29]} 23. Qxd6 {[%clk 0:01:36]}  Qxc2 {[%clk 0:00:27]} 24. Qd7+ {[%clk 0:01:35]}  Rg7 {[%clk 0:00:26]} 25. Qf5+ {[%clk 0:01:36]}  Kh8 {[%clk 0:00:26]} 26. Re3 {[%clk 0:01:32]}  Rf8 {[%clk 0:00:22]} 27. Rf1 {[%clk 0:01:26]}  Qc5 {[%clk 0:00:17]} 28. Rc3 {[%clk 0:01:20]}  Qb4 {[%clk 0:00:18]} 29. Rg3 {[%clk 0:01:18]}  b6 {[%clk 0:00:12]} 30. Rxg7 {[%clk 0:01:15]}  Kxg7 {[%clk 0:00:13]} 31. Qd7+ {[%clk 0:01:15]}  Rf7 {[%clk 0:00:13]} 32. Qd6 {[%clk 0:01:15]}  Qxb3 {[%clk 0:00:13]} 33. Nc7 {[%clk 0:01:05]}  Qxa4 {[%clk 0:00:10]} 34. Ne6+ {[%clk 0:01:06]}  Kh7 {[%clk 0:00:11]} 35. Nd8 {[%clk 0:01:03]}  Rd7 {[%clk 0:00:04]} 36. Qxf6 {[%clk 0:01:02]}  Qxe4 {[%clk 0:00:04]} 37. Ne6 {[%clk 0:00:58]}  Rc7 {[%clk 0:00:02]} 38. Nxc7 {[%clk 0:00:58]}  a4 {[%clk 0:00:00]} 39. Ne8 {[%clk 0:00:57]} 1-0


[Site "https://www.chess.com"]

[Event "Titled Tuesday Blitz November 07 Early 2023"]
[White "Kohler, Aran"]
[Black "Czopor, Maciej"]
[WhiteFideId "1002856"]
[BlackFideId "21805431"]
[WhiteElo "2286"]
[BlackElo "2556"]
[Result "1-0"]
[Round "3"]
[TimeControl "180+1"]
[Date "2023.11.07"]
[WhiteClock "0:00:44"]
[BlackClock "0:00:00"]
[Board "161"]

1. d4 {[%clk 0:03:00]}  g6 {[%clk 0:02:54]} 2. c3 {[%clk 0:02:59]}  Bg7 {[%clk 0:02:54]} 3. Bg5 {[%clk 0:02:59]}  h6 {[%clk 0:02:54]} 4. Bh4 {[%clk 0:02:59]}  g5 {[%clk 0:02:54]} 5. Bg3 {[%clk 0:02:59]}  d6 {[%clk 0:02:55]} 6. e3 {[%clk 0:02:58]}  Nc6 {[%clk 0:02:56]} 7. Nd2 {[%clk 0:02:57]}  e5 {[%clk 0:02:56]} 8. Bd3 {[%clk 0:02:52]}  Qe7 {[%clk 0:02:54]} 9. h4 {[%clk 0:02:51]}  Nf6 {[%clk 0:02:52]} 10. hxg5 {[%clk 0:02:50]}  hxg5 {[%clk 0:02:53]} 11. Rxh8+ {[%clk 0:02:49]}  Bxh8 {[%clk 0:02:54]} 12. Qe2 {[%clk 0:02:33]}  Bg4 {[%clk 0:02:50]} 13. f3 {[%clk 0:02:32]}  Bd7 {[%clk 0:02:47]} 14. O-O-O {[%clk 0:02:30]}  O-O-O {[%clk 0:02:47]} 15. Nh3 {[%clk 0:02:26]}  Re8 {[%clk 0:02:24]} 16. Re1 {[%clk 0:02:13]}  g4 {[%clk 0:02:10]} 17. Nf2 {[%clk 0:02:12]}  Nh5 {[%clk 0:02:10]} 18. Nh1 {[%clk 0:01:59]}  Nxg3 {[%clk 0:01:54]} 19. Nxg3 {[%clk 0:01:58]}  Qg5 {[%clk 0:01:51]} 20. Nge4 {[%clk 0:01:53]}  Qg8 {[%clk 0:01:29]} 21. d5 {[%clk 0:01:53]}  Ne7 {[%clk 0:01:28]} 22. c4 {[%clk 0:01:53]}  f5 {[%clk 0:01:26]} 23. Nc3 {[%clk 0:01:53]}  e4 {[%clk 0:00:42]} 24. fxe4 {[%clk 0:01:52]}  Bxc3 {[%clk 0:00:42]} 25. bxc3 {[%clk 0:01:53]}  Qg7 {[%clk 0:00:42]} 26. Kc2 {[%clk 0:01:53]}  fxe4 {[%clk 0:00:41]} 27. Bxe4 {[%clk 0:01:52]}  Ng8 {[%clk 0:00:26]} 28. Qd3 {[%clk 0:01:48]}  Qe5 {[%clk 0:00:18]} 29. Rf1 {[%clk 0:01:36]}  Kb8 {[%clk 0:00:07]} 30. Rf7 {[%clk 0:01:30]}  Ba4+ {[%clk 0:00:07]} 31. Kb2 {[%clk 0:01:29]}  Nf6 {[%clk 0:00:06]} 32. Bg6 {[%clk 0:01:20]}  Rh8 {[%clk 0:00:04]} 33. Qd4 {[%clk 0:00:57]}  Qxd4 {[%clk 0:00:01]} 34. cxd4 {[%clk 0:00:56]}  Nd7 {[%clk 0:00:01]} 35. Bf5 {[%clk 0:00:52]}  Nf8 {[%clk 0:00:01]} 36. Bxg4 {[%clk 0:00:51]}  b6 {[%clk 0:00:01]} 37. Bf3 {[%clk 0:00:50]}  Ng6 {[%clk 0:00:01]} 38. Kc3 {[%clk 0:00:50]}  a5 {[%clk 0:00:01]} 39. Ne4 {[%clk 0:00:48]}  Rh1 {[%clk 0:00:01]} 40. Nf6 {[%clk 0:00:46]}  Rc1+ {[%clk 0:00:02]} 41. Kd3 {[%clk 0:00:44]}  Bc2+ {[%clk 0:00:00]} 42. Kd2 {[%clk 0:00:44]} 1-0


[Site "https://www.chess.com"]

[Event "Titled Tuesday Blitz November 07 Early 2023"]
[White "Iskusnyh, Sergei"]
[Black "Kula, Robert"]
[WhiteFideId "4120027"]
[BlackFideId "1101218"]
[WhiteElo "2547"]
[BlackElo "2259"]
[Result "1/2-1/2"]
[Round "3"]
[TimeControl "180+1"]
[Date "2023.11.07"]
[WhiteClock "0:00:34"]
[BlackClock "0:00:41"]
[Board "164"]

1. d4 {[%clk 0:03:00]}  d5 {[%clk 0:02:55]} 2. c4 {[%clk 0:03:00]}  e6 {[%clk 0:02:56]} 3. g3 {[%clk 0:02:59]}  c6 {[%clk 0:02:55]} 4. Nf3 {[%clk 0:02:55]}  f5 {[%clk 0:02:56]} 5. Bg2 {[%clk 0:02:51]}  Nf6 {[%clk 0:02:56]} 6. O-O {[%clk 0:02:50]}  Be7 {[%clk 0:02:55]} 7. b3 {[%clk 0:02:46]}  O-O {[%clk 0:02:55]} 8. Ba3 {[%clk 0:02:46]}  Bd7 {[%clk 0:02:46]} 9. Qc1 {[%clk 0:02:45]}  Be8 {[%clk 0:02:45]} 10. Bxe7 {[%clk 0:02:41]}  Qxe7 {[%clk 0:02:45]} 11. Qa3 {[%clk 0:02:41]}  Qxa3 {[%clk 0:02:33]} 12. Nxa3 {[%clk 0:02:41]}  Bh5 {[%clk 0:02:34]} 13. Rfe1 {[%clk 0:02:40]}  Bxf3 {[%clk 0:02:32]} 14. exf3 {[%clk 0:02:40]}  Kf7 {[%clk 0:02:30]} 15. Nc2 {[%clk 0:02:38]}  Nbd7 {[%clk 0:02:29]} 16. Nb4 {[%clk 0:02:37]}  a5 {[%clk 0:02:25]} 17. Nd3 {[%clk 0:02:37]}  a4 {[%clk 0:02:25]} 18. c5 {[%clk 0:02:30]}  axb3 {[%clk 0:02:23]} 19. axb3 {[%clk 0:02:31]}  Rfb8 {[%clk 0:02:05]} 20. b4 {[%clk 0:02:25]}  Ne8 {[%clk 0:01:57]} 21. f4 {[%clk 0:02:21]}  Nc7 {[%clk 0:01:56]} 22. Ne5+ {[%clk 0:01:30]}  Nxe5 {[%clk 0:01:47]} 23. dxe5 {[%clk 0:01:31]}  Ke7 {[%clk 0:01:37]} 24. Bf1 {[%clk 0:01:30]}  Kd7 {[%clk 0:01:37]} 25. Bd3 {[%clk 0:01:30]}  g6 {[%clk 0:01:28]} 26. Kg2 {[%clk 0:01:27]}  Rxa1 {[%clk 0:01:21]} 27. Rxa1 {[%clk 0:01:26]}  Ra8 {[%clk 0:01:22]} 28. Rxa8 {[%clk 0:01:26]}  Nxa8 {[%clk 0:01:22]} 29. g4 {[%clk 0:01:27]}  h6 {[%clk 0:01:20]} 30. Kg3 {[%clk 0:01:24]}  Ke7 {[%clk 0:01:19]} 31. h4 {[%clk 0:01:20]}  Nc7 {[%clk 0:01:19]} 32. h5 {[%clk 0:01:20]}  Kf7 {[%clk 0:01:15]} 33. hxg6+ {[%clk 0:01:16]}  Kxg6 {[%clk 0:01:15]} 34. Kf3 {[%clk 0:01:05]}  h5 {[%clk 0:01:10]} 35. gxf5+ {[%clk 0:01:03]}  exf5 {[%clk 0:01:10]} 36. Kg3 {[%clk 0:01:02]}  Ne6 {[%clk 0:01:09]} 37. Be2 {[%clk 0:00:48]}  Kh6 {[%clk 0:00:55]} 38. Bd1 {[%clk 0:00:47]}  Kg6 {[%clk 0:00:47]} 39. Be2 {[%clk 0:00:45]}  Kh6 {[%clk 0:00:47]} 40. Bd1 {[%clk 0:00:42]}  Kg6 {[%clk 0:00:41]} 41. Be2 {[%clk 0:00:34]} 1/2-1/2


[Site "https://www.chess.com"]

[Event "Titled Tuesday Blitz November 07 Early 2023"]
[White "Balla, Tamas-Kristof"]
[Black "Goltseva, Ekaterina"]
[WhiteFideId "1208497"]
[BlackFideId "24173770"]
[WhiteElo "2304"]
[BlackElo "2546"]
[Result "1-0"]
[Round "3"]
[TimeControl "180+1"]
[Date "2023.11.07"]
[WhiteClock "0:00:22"]
[BlackClock "0:00:07"]
[Board "165"]

1. e4 {[%clk 0:03:00]}  e5 {[%clk 0:02:43]} 2. Nf3 {[%clk 0:02:57]}  Nc6 {[%clk 0:02:43]} 3. d4 {[%clk 0:02:58]}  exd4 {[%clk 0:02:43]} 4. Nxd4 {[%clk 0:02:59]}  Bb4+ {[%clk 0:02:43]} 5. c3 {[%clk 0:02:56]}  Bc5 {[%clk 0:02:44]} 6. Be3 {[%clk 0:02:54]}  Bb6 {[%clk 0:02:44]} 7. Nf5 {[%clk 0:02:54]}  g6 {[%clk 0:02:44]} 8. Bxb6 {[%clk 0:02:49]}  axb6 {[%clk 0:02:45]} 9. Ne3 {[%clk 0:02:47]}  Nf6 {[%clk 0:02:45]} 10. Nd2 {[%clk 0:02:46]}  d5 {[%clk 0:02:41]} 11. Bd3 {[%clk 0:02:23]}  dxe4 {[%clk 0:02:28]} 12. Nxe4 {[%clk 0:02:17]}  Be6 {[%clk 0:02:26]} 13. O-O {[%clk 0:02:06]}  O-O {[%clk 0:02:23]} 14. Nxf6+ {[%clk 0:01:47]}  Qxf6 {[%clk 0:02:24]} 15. Bc4 {[%clk 0:01:43]}  Rfd8 {[%clk 0:02:16]} 16. Qc2 {[%clk 0:01:30]}  Ne5 {[%clk 0:02:10]} 17. Bxe6 {[%clk 0:01:20]}  Qxe6 {[%clk 0:02:11]} 18. a3 {[%clk 0:01:19]}  Nd3 {[%clk 0:01:57]} 19. Rad1 {[%clk 0:01:15]}  Nf4 {[%clk 0:01:56]} 20. h3 {[%clk 0:01:08]}  Qc6 {[%clk 0:01:53]} 21. Qb3 {[%clk 0:00:42]}  Rxd1 {[%clk 0:01:17]} 22. Rxd1 {[%clk 0:00:40]}  Ra5 {[%clk 0:01:03]} 23. Qb4 {[%clk 0:00:37]}  Ne6 {[%clk 0:00:50]} 24. Qe7 {[%clk 0:00:32]}  Ra8 {[%clk 0:00:20]} 25. Ng4 {[%clk 0:00:31]}  Nf8 {[%clk 0:00:10]} 26. Re1 {[%clk 0:00:22]}  Kg7 {[%clk 0:00:06]} 27. Ne5 {[%clk 0:00:18]}  Qe6 {[%clk 0:00:05]} 28. Qxc7 {[%clk 0:00:18]}  Re8 {[%clk 0:00:03]} 29. Re3 {[%clk 0:00:18]}  Qc8 {[%clk 0:00:02]} 30. Qxb6 {[%clk 0:00:17]}  Qc6 {[%clk 0:00:01]} 31. Nxc6 {[%clk 0:00:16]}  Rxe3 {[%clk 0:00:01]} 32. fxe3 {[%clk 0:00:15]}  bxc6 {[%clk 0:00:02]} 33. Qxc6 {[%clk 0:00:16]}  Ne6 {[%clk 0:00:02]} 34. Qxe6 {[%clk 0:00:16]}  fxe6 {[%clk 0:00:02]} 35. a4 {[%clk 0:00:17]}  Kf6 {[%clk 0:00:02]} 36. a5 {[%clk 0:00:18]}  Ke5 {[%clk 0:00:03]} 37. a6 {[%clk 0:00:19]}  Ke4 {[%clk 0:00:04]} 38. a7 {[%clk 0:00:19]}  e5 {[%clk 0:00:04]} 39. a8=Q+ {[%clk 0:00:20]}  Kxe3 {[%clk 0:00:05]} 40. Qd5 {[%clk 0:00:20]}  e4 {[%clk 0:00:06]} 41. Kf1 {[%clk 0:00:21]}  h5 {[%clk 0:00:07]} 42. Ke1 {[%clk 0:00:21]}  h4 {[%clk 0:00:07]} 43. Qd2# {[%clk 0:00:22]} 1-0


[Site "https://www.chess.com"]

[Event "Titled Tuesday Blitz November 07 Early 2023"]
[White "Shukhman, Anna"]
[Black "le-castor-faineant"]
[WhiteFideId "54180058"]
[WhiteElo "2543"]
[BlackElo "2242"]
[Result "1/2-1/2"]
[Round "3"]
[TimeControl "180+1"]
[Date "2023.11.07"]
[WhiteClock "0:00:05"]
[BlackClock "0:00:03"]
[Board "166"]

1. e4 {[%clk 0:03:00]}  e5 {[%clk 0:02:50]} 2. Nf3 {[%clk 0:02:59]}  Nf6 {[%clk 0:02:49]} 3. Nxe5 {[%clk 0:02:56]}  d6 {[%clk 0:02:49]} 4. Nd3 {[%clk 0:02:54]}  Nxe4 {[%clk 0:02:49]} 5. Qe2 {[%clk 0:02:54]}  Qe7 {[%clk 0:02:44]} 6. f3 {[%clk 0:02:52]}  Nf6 {[%clk 0:02:40]} 7. Nc3 {[%clk 0:02:49]}  Nc6 {[%clk 0:02:38]} 8. Nf4 {[%clk 0:02:47]}  Nd4 {[%clk 0:02:23]} 9. Qxe7+ {[%clk 0:02:45]}  Bxe7 {[%clk 0:02:24]} 10. Bd3 {[%clk 0:02:18]}  c6 {[%clk 0:02:23]} 11. O-O {[%clk 0:02:15]}  O-O {[%clk 0:02:23]} 12. Re1 {[%clk 0:02:12]}  Re8 {[%clk 0:02:22]} 13. b3 {[%clk 0:02:12]}  d5 {[%clk 0:02:21]} 14. Bb2 {[%clk 0:02:09]}  Ne6 {[%clk 0:01:59]} 15. Nxe6 {[%clk 0:01:48]}  Bxe6 {[%clk 0:02:00]} 16. Ne2 {[%clk 0:01:48]}  Bc5+ {[%clk 0:01:51]} 17. Bd4 {[%clk 0:01:47]}  Bxd4+ {[%clk 0:01:49]} 18. Nxd4 {[%clk 0:01:48]}  c5 {[%clk 0:01:49]} 19. Nb5 {[%clk 0:01:42]}  Rec8 {[%clk 0:01:45]} 20. c4 {[%clk 0:01:33]}  d4 {[%clk 0:01:42]} 21. f4 {[%clk 0:01:30]}  a6 {[%clk 0:01:29]} 22. Nd6 {[%clk 0:01:28]}  Rc7 {[%clk 0:01:29]} 23. f5 {[%clk 0:01:26]}  Bd7 {[%clk 0:01:00]} 24. Re7 {[%clk 0:01:22]}  Ne8 {[%clk 0:00:46]} 25. Nxf7 {[%clk 0:01:11]}  Bxf5 {[%clk 0:00:41]} 26. Rxc7 {[%clk 0:01:05]}  Nxc7 {[%clk 0:00:42]} 27. Bxf5 {[%clk 0:01:04]}  Kxf7 {[%clk 0:00:42]} 28. Rf1 {[%clk 0:00:53]}  Kg8 {[%clk 0:00:41]} 29. Be4 {[%clk 0:00:51]}  Rb8 {[%clk 0:00:36]} 30. Rf5 {[%clk 0:00:50]}  b6 {[%clk 0:00:35]} 31. d3 {[%clk 0:00:45]}  Rf8 {[%clk 0:00:33]} 32. Re5 {[%clk 0:00:42]}  Re8 {[%clk 0:00:29]} 33. Bd5+ {[%clk 0:00:36]}  Kh8 {[%clk 0:00:16]} 34. Rf5 {[%clk 0:00:34]}  Nxd5 {[%clk 0:00:16]} 35. cxd5 {[%clk 0:00:33]}  g6 {[%clk 0:00:15]} 36. Rf6 {[%clk 0:00:32]}  Rd8 {[%clk 0:00:11]} 37. Rxb6 {[%clk 0:00:31]}  Rxd5 {[%clk 0:00:11]} 38. Rxa6 {[%clk 0:00:31]}  Kg7 {[%clk 0:00:11]} 39. Rc6 {[%clk 0:00:29]}  Re5 {[%clk 0:00:10]} 40. Kf2 {[%clk 0:00:28]}  Re3 {[%clk 0:00:11]} 41. Rxc5 {[%clk 0:00:27]}  Rxd3 {[%clk 0:00:11]} 42. Rd5 {[%clk 0:00:21]}  Rd2+ {[%clk 0:00:10]} 43. Kf3 {[%clk 0:00:21]}  Rxa2 {[%clk 0:00:11]} 44. Rxd4 {[%clk 0:00:21]}  Ra3 {[%clk 0:00:12]} 45. Rd3 {[%clk 0:00:19]}  Kf6 {[%clk 0:00:11]} 46. g4 {[%clk 0:00:18]}  h5 {[%clk 0:00:11]} 47. gxh5 {[%clk 0:00:18]}  gxh5 {[%clk 0:00:11]} 48. Ke4 {[%clk 0:00:17]}  Ke6 {[%clk 0:00:10]} 49. Rh3 {[%clk 0:00:17]}  Kd6 {[%clk 0:00:06]} 50. Kd4 {[%clk 0:00:15]}  Ra5 {[%clk 0:00:03]} 51. b4 {[%clk 0:00:15]}  Rg5 {[%clk 0:00:03]} 52. Kc4 {[%clk 0:00:14]}  Kc6 {[%clk 0:00:03]} 53. Rh4 {[%clk 0:00:10]}  Kb6 {[%clk 0:00:01]} 54. Rf4 {[%clk 0:00:08]}  Kc6 {[%clk 0:00:02]} 55. Rf6+ {[%clk 0:00:08]}  Kb7 {[%clk 0:00:03]} 56. Rh6 {[%clk 0:00:08]}  Rg4+ {[%clk 0:00:02]} 57. Kb5 {[%clk 0:00:08]}  h4 {[%clk 0:00:03]} 58. Rh7+ {[%clk 0:00:08]}  Kb8 {[%clk 0:00:03]} 59. Ka6 {[%clk 0:00:08]}  Rxb4 {[%clk 0:00:03]} 60. Rh8+ {[%clk 0:00:07]}  Kc7 {[%clk 0:00:03]} 61. Ka5 {[%clk 0:00:08]}  Rg4 {[%clk 0:00:03]} 62. Kb5 {[%clk 0:00:08]}  Kd6 {[%clk 0:00:04]} 63. Rh5 {[%clk 0:00:08]}  Ke6 {[%clk 0:00:04]} 64. Kc5 {[%clk 0:00:08]}  Kf6 {[%clk 0:00:04]} 65. Rh8 {[%clk 0:00:08]}  Kf5 {[%clk 0:00:04]} 66. Kd5 {[%clk 0:00:08]}  Kf4 {[%clk 0:00:05]} 67. Kd4 {[%clk 0:00:07]}  Kf3+ {[%clk 0:00:05]} 68. Kd3 {[%clk 0:00:08]}  Kg2 {[%clk 0:00:05]} 69. Ke2 {[%clk 0:00:07]}  Kxh2 {[%clk 0:00:05]} 70. Kf3 {[%clk 0:00:08]}  Rg3+ {[%clk 0:00:05]} 71. Kf2 {[%clk 0:00:07]}  h3 {[%clk 0:00:05]} 72. Rh7 {[%clk 0:00:04]}  Rg2+ {[%clk 0:00:05]} 73. Kf1 {[%clk 0:00:05]}  Ra2 {[%clk 0:00:05]} 74. Rh8 {[%clk 0:00:05]}  Ra1+ {[%clk 0:00:05]} 75. Kf2 {[%clk 0:00:05]}  Ra3 {[%clk 0:00:05]} 76. Kf1 {[%clk 0:00:05]}  Kh1 {[%clk 0:00:04]} 77. Kf2 {[%clk 0:00:05]}  h2 {[%clk 0:00:04]} 78. Rh7 {[%clk 0:00:05]}  Ra2+ {[%clk 0:00:05]} 79. Kf1 {[%clk 0:00:05]}  Ra1+ {[%clk 0:00:03]} 80. Kf2 {[%clk 0:00:06]}  Ra6 {[%clk 0:00:04]} 81. Rf7 {[%clk 0:00:05]}  Rg6 {[%clk 0:00:03]} 82. Rf5 {[%clk 0:00:04]}  Rg2+ {[%clk 0:00:03]} 83. Kf1 {[%clk 0:00:05]}  Rg1+ {[%clk 0:00:03]} 84. Kf2 {[%clk 0:00:05]}  Rg8 {[%clk 0:00:04]} 85. Rf7 {[%clk 0:00:05]}  Rf8 {[%clk 0:00:03]} 86. Rxf8 {[%clk 0:00:05]} 1/2-1/2


[Site "https://www.chess.com"]